[Event "*** Monthly 3|2 Blitz Masters"]
[Site "Chess.com"]
[Date "2014.11.25"]
[Round "3"]
[White "grandmastergauri"]
[Black "VSERGUEI"]
[Result "0-1"]
[WhiteElo "2336"]
[BlackElo "2373"]
[TimeControl "180+2"]
[EndTime "11:34:43 PST"]
[Termination "VSERGUEI won by resignation"]

1. e4 {[%clk 0:02:58.4]} 1... e6 {[%clk 0:02:56.6]} 2. d4 {[%clk 0:02:55.7]}
2... d5 {[%clk 0:02:57.9]} 3. Nd2 {[%clk 0:02:56.9]} 3... Nf6 {[%clk 0:02:58.5]}
4. e5 {[%clk 0:02:58]} 4... Nfd7 {[%clk 0:02:59.8]} 5. c3 {[%clk 0:02:59.6]}
5... c5 {[%clk 0:03:01.1]} 6. Bd3 {[%clk 0:03:00.6]} 6... Nc6 {[%clk 0:03:02.2]}
7. Ne2 {[%clk 0:03:01.6]} 7... cxd4 {[%clk 0:03:03.3]} 8. cxd4 {[%clk
0:03:03.5]} 8... f6 {[%clk 0:03:04.3]} 9. exf6 {[%clk 0:03:04.9]} 9... Nxf6
{[%clk 0:03:05.7]} 10. Nf3 {[%clk 0:03:06.5]} 10... Bd6 {[%clk 0:03:05.6]} 11.
O-O {[%clk 0:03:05]} 11... O-O {[%clk 0:03:05.8]} 12. Bf4 {[%clk 0:03:03.1]}
12... Bxf4 {[%clk 0:03:07.1]} 13. Nxf4 {[%clk 0:03:04.4]} 13... Ne4 {[%clk
0:03:08.6]} 14. Nh5 {[%clk 0:03:00.1]} 14... Bd7 {[%clk 0:03:03.7]} 15. Ng3
{[%clk 0:02:58.9]} 15... Nxg3 {[%clk 0:02:58.9]} 16. hxg3 {[%clk 0:03:00.1]}
16... a6 {[%clk 0:02:57.5]} 17. a3 {[%clk 0:02:53.7]} 17... Rc8 {[%clk
0:02:56.9]} 18. Rc1 {[%clk 0:02:53.2]} 18... Qf6 {[%clk 0:02:55.9]} 19. Bb1
{[%clk 0:02:47.4]} 19... Na5 {[%clk 0:02:42]} 20. Qd3 {[%clk 0:02:44.8]} 20...
g6 {[%clk 0:02:37.1]} 21. Qe2 {[%clk 0:02:33.3]} 21... Bb5 {[%clk 0:02:32.9]}
22. Bd3 {[%clk 0:02:33.9]} 22... Bxd3 {[%clk 0:02:32.6]} 23. Qxd3 {[%clk
0:02:34.7]} 23... Nc4 {[%clk 0:02:27.9]} 24. Qe2 {[%clk 0:02:30.2]} 24... b5
{[%clk 0:02:25.6]} 25. Rfe1 {[%clk 0:02:16.9]} 25... Rfe8 {[%clk 0:02:21]} 26.
Ne5 {[%clk 0:01:27.2]} 26... Nxe5 {[%clk 0:02:13.9]} 27. dxe5 {[%clk 0:01:28.3]}
27... Qf5 {[%clk 0:02:14]} 28. Qe3 {[%clk 0:01:23.4]} 28... Rc4 {[%clk
0:02:06.7]} 29. b3 {[%clk 0:01:19.9]} 29... Re4 {[%clk 0:02:06.7]} 30. Qc3
{[%clk 0:01:17.1]} 30... d4 {[%clk 0:01:50.1]} 31. Qc6 {[%clk 0:01:16.6]} 31...
Rxe1+ {[%clk 0:01:50.1]} 32. Rxe1 {[%clk 0:01:17.6]} 32... Rf8 {[%clk
0:01:47.4]} 33. f4 {[%clk 0:01:01.5]} 33... g5 {[%clk 0:01:46.7]} 34. Qe4 {[%clk
0:01:02.4]} 34... gxf4 {[%clk 0:01:30.5]} 35. Qxf5 {[%clk 0:00:28.7]} 35... Rxf5
{[%clk 0:01:29.9]} 36. g4 {[%clk 0:00:30]} 36... Rg5 {[%clk 0:01:23.7]} 37. Rd1
{[%clk 0:00:31.3]} 37... Rxe5 {[%clk 0:01:20.8]} 38. Rxd4 {[%clk 0:00:32.3]}
38... Re3 {[%clk 0:01:18.8]} 39. b4 {[%clk 0:00:28.4]} 39... e5 {[%clk
0:01:17.1]} 40. Rd8+ {[%clk 0:00:29]} 40... Kf7 {[%clk 0:01:17.3]} 41. Rd7+
{[%clk 0:00:30.9]} 41... Ke6 {[%clk 0:01:14.7]} 42. Rxh7 {[%clk 0:00:32]} 42...
Rxa3 {[%clk 0:01:15.1]} 43. Rh6+ {[%clk 0:00:33]} 43... Kd5 {[%clk 0:01:14.9]}
44. g5 {[%clk 0:00:34.5]} 44... Rg3 {[%clk 0:01:11.5]} 45. Rxa6 {[%clk
0:00:26.3]} 45... Rxg5 {[%clk 0:01:11.5]} 46. Ra1 {[%clk 0:00:17.9]} 46... Kc4
{[%clk 0:01:09.9]} 47. Kf2 {[%clk 0:00:16.8]} 47... Kxb4 {[%clk 0:01:09.5]} 48.
Kf3 {[%clk 0:00:18.7]} 48... Kc3 {[%clk 0:01:08.4]} 49. Rc1+ {[%clk 0:00:19.1]}
49... Kb2 {[%clk 0:01:08.2]} 50. Rc8 {[%clk 0:00:19]} 50... b4 {[%clk
0:01:09.1]} 51. Rb8 {[%clk 0:00:19.1]} 51... b3 {[%clk 0:01:09.7]} 52. Rc8
{[%clk 0:00:20.3]} 52... Kb1 {[%clk 0:01:09.6]} 53. Ke4 {[%clk 0:00:19.8]} 53...
b2 {[%clk 0:01:10]} 54. Rb8 {[%clk 0:00:15.7]} 54... Rxg2 {[%clk 0:01:08.2]} 55.
Kd3 {[%clk 0:00:17.6]} 55... Rg3+ {[%clk 0:00:50.9]} 56. Kd2 {[%clk 0:00:16.8]}
56... e4 {[%clk 0:00:51.2]} 57. Rb7 {[%clk 0:00:11.5]} 57... Rd3+ {[%clk
0:00:51.7]} 58. Ke2 {[%clk 0:00:12.3]} 58... f3+ {[%clk 0:00:52.2]} 59. Kf2
{[%clk 0:00:12.7]} 59... Rd2+ {[%clk 0:00:53]} 60. Ke3 {[%clk 0:00:12.5]} 60...
Re2+ {[%clk 0:00:53.7]} 61. Kd4 {[%clk 0:00:13.8]} 61... f2 {[%clk 0:00:54]} 62.
Kc3 {[%clk 0:00:13.9]} 62... f1=Q {[%clk 0:00:51.6]} 63. Rxb2+ {[%clk
0:00:14.7]} 63... Rxb2 {[%clk 0:00:51.5]} 0-1

[Event "*** Monthly 3|2 Blitz Masters"]
[Site "Chess.com"]
[Date "2014.11.25"]
[Round "3"]
[White "GeorgMeier"]
[Black "Chesseducation4u"]
[Result "1-0"]
[WhiteElo "2574"]
[BlackElo "2418"]
[TimeControl "180+2"]
[EndTime "11:36:03 PST"]
[Termination "GeorgMeier won on time"]

1. Nf3 {[%clk 0:03:00]} 1... Nf6 {[%clk 0:02:58.8]} 2. g3 {[%clk 0:03:01.4]}
2... g6 {[%clk 0:02:58.2]} 3. Bg2 {[%clk 0:03:02.9]} 3... Bg7 {[%clk 0:03:00.1]}
4. O-O {[%clk 0:03:04.3]} 4... O-O {[%clk 0:03:02]} 5. d4 {[%clk 0:03:05.9]}
5... c6 {[%clk 0:03:02.7]} 6. b3 {[%clk 0:03:06.2]} 6... d5 {[%clk 0:03:03.6]}
7. Nbd2 {[%clk 0:03:05.7]} 7... Bf5 {[%clk 0:03:04.6]} 8. Bb2 {[%clk 0:03:06.5]}
8... Ne4 {[%clk 0:03:05.9]} 9. c4 {[%clk 0:03:07.4]} 9... Qa5 {[%clk 0:03:07.2]}
10. e3 {[%clk 0:03:05.8]} 10... Nd7 {[%clk 0:03:05.1]} 11. a3 {[%clk 0:03:00.7]}
11... Nxd2 {[%clk 0:02:55.3]} 12. Nxd2 {[%clk 0:02:53.9]} 12... Nf6 {[%clk
0:02:55.5]} 13. b4 {[%clk 0:02:49.6]} 13... Qc7 {[%clk 0:02:51.1]} 14. Rc1
{[%clk 0:02:32.3]} 14... Qd7 {[%clk 0:02:50.2]} 15. Nf3 {[%clk 0:02:31.2]} 15...
Bg4 {[%clk 0:02:13.7]} 16. cxd5 {[%clk 0:02:18]} 16... Bxf3 {[%clk 0:02:06.2]}
17. Bxf3 {[%clk 0:02:08.1]} 17... cxd5 {[%clk 0:02:08.1]} 18. Qd3 {[%clk
0:01:58.8]} 18... Rfc8 {[%clk 0:02:03.6]} 19. Rc5 {[%clk 0:01:50.3]} 19... e6
{[%clk 0:02:01.8]} 20. Rfc1 {[%clk 0:01:49.2]} 20... b6 {[%clk 0:01:52.6]} 21.
R5c2 {[%clk 0:01:49]} 21... Ne8 {[%clk 0:01:45.4]} 22. Qa6 {[%clk 0:01:14.1]}
22... Nd6 {[%clk 0:01:43.3]} 23. Be2 {[%clk 0:01:13.9]} 23... Rxc2 {[%clk
0:01:33.8]} 24. Rxc2 {[%clk 0:01:15.8]} 24... Rc8 {[%clk 0:01:32.1]} 25. Rxc8+
{[%clk 0:01:15.4]} 25... Qxc8 {[%clk 0:01:34]} 26. Qxc8+ {[%clk 0:01:16.1]}
26... Nxc8 {[%clk 0:01:34]} 27. b5 {[%clk 0:01:17.5]} 27... Nd6 {[%clk
0:01:34.1]} 28. a4 {[%clk 0:01:18.1]} 28... Bf8 {[%clk 0:01:28.1]} 29. Bd3
{[%clk 0:01:16]} 29... f5 {[%clk 0:01:28.1]} 30. f3 {[%clk 0:01:14.6]} 30... Kf7
{[%clk 0:01:25.3]} 31. Kf2 {[%clk 0:01:15.6]} 31... h5 {[%clk 0:01:25.4]} 32.
Ke2 {[%clk 0:01:16]} 32... Be7 {[%clk 0:01:23.1]} 33. Bc3 {[%clk 0:01:15.9]}
33... Bf8 {[%clk 0:01:15.6]} 34. Be1 {[%clk 0:01:16.3]} 34... Be7 {[%clk
0:01:13.8]} 35. h3 {[%clk 0:01:16.9]} 35... Bf8 {[%clk 0:01:09]} 36. g4 {[%clk
0:01:17.5]} 36... hxg4 {[%clk 0:01:08.6]} 37. hxg4 {[%clk 0:01:15.9]} 37... Be7
{[%clk 0:00:57.5]} 38. Bg3 {[%clk 0:01:16.7]} 38... Ke8 {[%clk 0:00:56.4]} 39.
Be5 {[%clk 0:01:12.1]} 39... Kd7 {[%clk 0:00:56.5]} 40. Bf4 {[%clk 0:01:06.6]}
40... Bf6 {[%clk 0:00:51.1]} 41. Bg3 {[%clk 0:01:03.4]} 41... Be7 {[%clk
0:00:51.8]} 42. Be5 {[%clk 0:01:04.2]} 42... Bg5 {[%clk 0:00:48.6]} 43. Kf2
{[%clk 0:00:56.4]} 43... Bh4+ {[%clk 0:00:48.7]} 44. Kf1 {[%clk 0:00:55.9]}
44... Be7 {[%clk 0:00:50.6]} 45. Ke1 {[%clk 0:00:51.6]} 45... Bh4+ {[%clk
0:00:51.1]} 46. Ke2 {[%clk 0:00:52.5]} 46... Be7 {[%clk 0:00:53]} 47. Bg3 {[%clk
0:00:53.3]} 47... Bf6 {[%clk 0:00:52.6]} 48. Bc2 {[%clk 0:00:52.8]} 48... Be7
{[%clk 0:00:53.2]} 49. e4 {[%clk 0:00:40]} 49... fxe4 {[%clk 0:00:51.5]} 50.
fxe4 {[%clk 0:00:40.9]} 50... dxe4 {[%clk 0:00:44.8]} 51. Ke3 {[%clk 0:00:37.1]}
51... Bg5+ {[%clk 0:00:44.7]} 52. Bf4 {[%clk 0:00:38]} 52... Bf6 {[%clk
0:00:18.3]} 53. Bxe4 {[%clk 0:00:30.7]} 53... g5 {[%clk 0:00:08.1]} 54. Bg3
{[%clk 0:00:26.9]} 54... Nc4+ {[%clk 0:00:08.8]} 55. Kd3 {[%clk 0:00:27.9]}
55... Nb2+ {[%clk 0:00:09.2]} 56. Kc2 {[%clk 0:00:17]} 56... Nc4 {[%clk
0:00:07.7]} 57. Kd3 {[%clk 0:00:14.3]} 57... Nd6 {[%clk 0:00:07.9]} 58. Bc6+
{[%clk 0:00:14.4]} 58... Ke7 {[%clk 0:00:08.1]} 59. Bh2 {[%clk 0:00:14.1]} 59...
Bg7 {[%clk 0:00:08.6]} 60. Bg3 {[%clk 0:00:14.7]} 60... Bf6 {[%clk 0:00:09.2]}
61. Be1 {[%clk 0:00:16.1]} 61... Bh8 {[%clk 0:00:10]} 62. Bb4 {[%clk 0:00:16.5]}
62... Bf6 {[%clk 0:00:10.6]} 63. Bd2 {[%clk 0:00:16.5]} 63... Kd8 {[%clk
0:00:10.8]} 64. Bc1 {[%clk 0:00:17.4]} 64... Kc7 {[%clk 0:00:11.5]} 65. Ba3
{[%clk 0:00:17.7]} 65... Bg7 {[%clk 0:00:10.9]} 66. Bf3 {[%clk 0:00:17.6]} 66...
Bf6 {[%clk 0:00:11.1]} 67. Bb4 {[%clk 0:00:18.5]} 67... Kd7 {[%clk 0:00:11.6]}
68. Bc6+ {[%clk 0:00:18.8]} 68... Kc7 {[%clk 0:00:12.6]} 69. a5 {[%clk
0:00:19.9]} 69... Bg7 {[%clk 0:00:12.9]} 70. a6 {[%clk 0:00:21]} 70... Bf6
{[%clk 0:00:13.6]} 71. Be1 {[%clk 0:00:22.1]} 71... Bg7 {[%clk 0:00:14.5]} 72.
Bg3 {[%clk 0:00:23.1]} 72... Bf6 {[%clk 0:00:14.6]} 73. Bh2 {[%clk 0:00:23.4]}
73... Bg7 {[%clk 0:00:15]} 74. Bg3 {[%clk 0:00:22.3]} 74... Bf6 {[%clk
0:00:16.1]} 75. Bf2 {[%clk 0:00:23.6]} 75... Bg7 {[%clk 0:00:16.7]} 76. Be3
{[%clk 0:00:25]} 76... Bf6 {[%clk 0:00:17.7]} 77. Bg1 {[%clk 0:00:24.4]} 77...
Kd8 {[%clk 0:00:18.6]} 78. d5 {[%clk 0:00:23.4]} 1-0

[Event "*** Monthly 3|2 Blitz Masters"]
[Site "Chess.com"]
[Date "2014.11.25"]
[Round "4"]
[White "Chesseducation4u"]
[Black "hitaman"]
[Result "0-1"]
[WhiteElo "2409"]
[BlackElo "2401"]
[TimeControl "180+2"]
[EndTime "11:41:32 PST"]
[Termination "hitaman won on time"]

1. Nf3 {[%clk 0:02:58.8]} 1... d5 {[%clk 0:02:57.6]} 2. g3 {[%clk 0:02:59.8]}
2... Nf6 {[%clk 0:02:55.3]} 3. Bg2 {[%clk 0:03:01.1]} 3... c5 {[%clk 0:02:54.2]}
4. O-O {[%clk 0:03:00.6]} 4... Nc6 {[%clk 0:02:54.4]} 5. d4 {[%clk 0:03:01.2]}
5... e6 {[%clk 0:02:54.1]} 6. c4 {[%clk 0:03:01.7]} 6... dxc4 {[%clk 0:02:55.7]}
7. Qa4 {[%clk 0:03:01.1]} 7... Bd7 {[%clk 0:02:55.2]} 8. dxc5 {[%clk 0:03:01.7]}
8... Na5 {[%clk 0:02:51.3]} 9. Qb4 {[%clk 0:02:42.9]} 9... b6 {[%clk 0:02:34]}
10. Be3 {[%clk 0:02:42.5]} 10... Rc8 {[%clk 0:02:34.4]} 11. Rd1 {[%clk 0:02:34]}
11... Nd5 {[%clk 0:02:32.9]} 12. Qe1 {[%clk 0:02:19]} 12... Nxe3 {[%clk
0:02:29.2]} 13. fxe3 {[%clk 0:02:20.3]} 13... Bxc5 {[%clk 0:02:19.7]} 14. Ne5
{[%clk 0:02:20.5]} 14... Rc7 {[%clk 0:02:14]} 15. Qd2 {[%clk 0:02:16]} 15... Qg5
{[%clk 0:02:08.9]} 0-1

[Event "*** Monthly 3|2 Blitz Masters"]
[Site "Chess.com"]
[Date "2014.11.25"]
[Round "4"]
[White "grandmastergauri"]
[Black "Argente"]
[Result "1-0"]
[WhiteElo "2340"]
[BlackElo "2161"]
[TimeControl "180+2"]
[EndTime "11:41:37 PST"]
[Termination "grandmastergauri won by resignation"]

1. e4 {[%clk 0:03:00]} 1... g6 {[%clk 0:02:59.6]} 2. g3 {[%clk 0:02:57.3]} 2...
Bg7 {[%clk 0:03:00.5]} 3. Bg2 {[%clk 0:02:59.2]} 3... d6 {[%clk 0:03:01.3]} 4.
d3 {[%clk 0:03:00.1]} 4... Nf6 {[%clk 0:03:02.2]} 5. h3 {[%clk 0:03:01.2]} 5...
O-O {[%clk 0:03:02.9]} 6. f4 {[%clk 0:03:02.1]} 6... c5 {[%clk 0:03:02.9]} 7.
Ne2 {[%clk 0:03:02.7]} 7... Nc6 {[%clk 0:03:03.7]} 8. O-O {[%clk 0:03:04.2]}
8... Bd7 {[%clk 0:03:02.8]} 9. g4 {[%clk 0:03:05.1]} 9... b5 {[%clk 0:03:01.9]}
10. Nd2 {[%clk 0:03:00.3]} 10... a5 {[%clk 0:03:01.9]} 11. Nf3 {[%clk
0:03:01.9]} 11... a4 {[%clk 0:03:02.3]} 12. a3 {[%clk 0:02:49]} 12... c4 {[%clk
0:02:37.5]} 13. Be3 {[%clk 0:02:46.2]} 13... Rb8 {[%clk 0:02:26.3]} 14. f5
{[%clk 0:02:20.4]} 14... cxd3 {[%clk 0:02:21.3]} 15. cxd3 {[%clk 0:02:21.3]}
15... Na5 {[%clk 0:02:18.7]} 16. Qe1 {[%clk 0:02:21.4]} 16... Nb3 {[%clk
0:02:18.6]} 17. Rd1 {[%clk 0:02:22.1]} 17... Rc8 {[%clk 0:02:13.1]} 18. Qh4
{[%clk 0:02:21]} 18... Rc2 {[%clk 0:02:11.7]} 19. Ng3 {[%clk 0:02:10.3]} 19...
Rxb2 {[%clk 0:02:09.4]} 20. Bh6 {[%clk 0:02:08.6]} 20... Qb6+ {[%clk 0:02:04.1]}
21. Kh1 {[%clk 0:02:09.8]} 21... Rc8 {[%clk 0:01:57.4]} 22. g5 {[%clk 0:02:02]}
22... Ne8 {[%clk 0:01:44.1]} 23. f6 {[%clk 0:01:55.6]} 23... exf6 {[%clk
0:01:34.9]} 24. Bxg7 {[%clk 0:01:55.3]} 24... Kxg7 {[%clk 0:01:21.4]} 25. gxf6+
{[%clk 0:01:54.1]} 25... Nxf6 {[%clk 0:01:20.6]} 26. Ng5 {[%clk 0:01:54.8]}
26... Rf2 {[%clk 0:01:20.7]} 27. Rxf2 {[%clk 0:01:55.7]} 27... Qxf2 {[%clk
0:01:21.3]} 1-0

[Event "*** Monthly 3|2 Blitz Masters"]
[Site "Chess.com"]
[Date "2014.11.25"]
[Round "4"]
[White "gmjlh"]
[Black "162a54f5d"]
[Result "1-0"]
[WhiteElo "2532"]
[BlackElo "2294"]
[TimeControl "180+2"]
[EndTime "11:42:17 PST"]
[Termination "gmjlh won by checkmate"]

1. e4 {[%clk 0:03:00]} 1... e5 {[%clk 0:02:58.5]} 2. Nf3 {[%clk 0:03:01.3]} 2...
Nc6 {[%clk 0:02:59.4]} 3. Bb5 {[%clk 0:03:02.4]} 3... a6 {[%clk 0:03:00.5]} 4.
Ba4 {[%clk 0:03:02.7]} 4... Nf6 {[%clk 0:03:01.4]} 5. O-O {[%clk 0:03:03.3]}
5... Be7 {[%clk 0:03:02.7]} 6. Re1 {[%clk 0:03:02.8]} 6... b5 {[%clk 0:03:03.6]}
7. Bb3 {[%clk 0:03:02.8]} 7... d6 {[%clk 0:03:05]} 8. c3 {[%clk 0:03:03.5]} 8...
O-O {[%clk 0:03:06.1]} 9. h3 {[%clk 0:03:03.6]} 9... Na5 {[%clk 0:03:06.8]} 10.
Bc2 {[%clk 0:03:04.3]} 10... c5 {[%clk 0:03:06.3]} 11. d4 {[%clk 0:03:05.4]}
11... Qc7 {[%clk 0:03:07.4]} 12. d5 {[%clk 0:03:06.2]} 12... Bd7 {[%clk
0:02:51]} 13. Nbd2 {[%clk 0:02:59.5]} 13... Nb7 {[%clk 0:02:52.2]} 14. c4 {[%clk
0:02:58]} 14... Nd8 {[%clk 0:02:41.5]} 15. Nf1 {[%clk 0:02:33.7]} 15... bxc4
{[%clk 0:02:36.7]} 16. Ne3 {[%clk 0:02:33.9]} 16... Bb5 {[%clk 0:01:56.5]} 17.
Nd2 {[%clk 0:02:32.6]} 17... Nb7 {[%clk 0:01:47.7]} 18. Ndxc4 {[%clk 0:02:32.2]}
18... Na5 {[%clk 0:01:48.7]} 19. Nd2 {[%clk 0:02:29.4]} 19... c4 {[%clk
0:01:46.8]} 20. Nb1 {[%clk 0:02:29.9]} 20... Rfc8 {[%clk 0:01:41.1]} 21. Nf5
{[%clk 0:02:25.8]} 21... Bf8 {[%clk 0:01:41.8]} 22. Bg5 {[%clk 0:02:26.4]} 22...
Nd7 {[%clk 0:01:42.2]} 23. Qg4 {[%clk 0:02:24.8]} 23... Nc5 {[%clk 0:01:34.9]}
24. Bf6 {[%clk 0:01:59.1]} 24... g6 {[%clk 0:01:34.5]} 25. Qg5 {[%clk
0:01:29.7]} 25... h6 {[%clk 0:01:04.4]} 26. Nxh6+ {[%clk 0:01:29.2]} 26... Kh7
{[%clk 0:01:05.7]} 27. Ng4 {[%clk 0:01:29.7]} 27... Bg7 {[%clk 0:00:53.7]} 28.
Bxg7 {[%clk 0:01:23.4]} 28... Kxg7 {[%clk 0:00:55.6]} 29. Qh6+ {[%clk
0:01:23.8]} 29... Kg8 {[%clk 0:00:57.2]} 30. Nf6# {[%clk 0:01:24.8]} 1-0

[Event "*** Monthly 3|2 Blitz Masters"]
[Site "Chess.com"]
[Date "2014.11.25"]
[Round "4"]
[White "patzerplay"]
[Black "Vandros57"]
[Result "1-0"]
[WhiteElo "2089"]
[BlackElo "1791"]
[TimeControl "180+2"]
[EndTime "11:42:26 PST"]
[Termination "patzerplay won by resignation"]

1. e4 {[%clk 0:02:41]} 1... c5 {[%clk 0:02:57.7]} 2. c3 {[%clk 0:02:41.9]} 2...
d5 {[%clk 0:02:57.1]} 3. exd5 {[%clk 0:02:43.2]} 3... Qxd5 {[%clk 0:02:56.9]} 4.
d4 {[%clk 0:02:44.8]} 4... Nf6 {[%clk 0:02:54.7]} 5. Nf3 {[%clk 0:02:46.2]} 5...
Bg4 {[%clk 0:02:52.7]} 6. Qa4+ {[%clk 0:02:46.9]} 6... Nbd7 {[%clk 0:02:40.2]}
7. Bc4 {[%clk 0:02:45.7]} 7... Qe4+ {[%clk 0:02:35.2]} 8. Be3 {[%clk 0:02:46.8]}
8... Bxf3 {[%clk 0:02:30.8]} 9. Nd2 {[%clk 0:02:47.1]} 9... Qg6 {[%clk
0:02:04.9]} 10. Nxf3 {[%clk 0:02:35]} 10... Qxg2 {[%clk 0:02:01.2]} 11. Ke2
{[%clk 0:02:36]} 11... e6 {[%clk 0:01:49.1]} 12. dxc5 {[%clk 0:02:24]} 12... Be7
{[%clk 0:01:42.2]} 13. Rhg1 {[%clk 0:02:22.4]} 13... Qh3 {[%clk 0:01:41]} 14.
Rxg7 {[%clk 0:02:20.7]} 14... a6 {[%clk 0:01:28.6]} 15. Rd1 {[%clk 0:02:17.6]}
15... Rd8 {[%clk 0:01:22.4]} 16. Rxf7 {[%clk 0:01:56.8]} 16... Qh5 {[%clk
0:01:12.6]} 17. Bxe6 {[%clk 0:01:54.9]} 17... Rf8 {[%clk 0:00:54.8]} 18. Rxf6
{[%clk 0:01:46.2]} 18... Rxf6 {[%clk 0:00:44.9]} 19. Bxd7+ {[%clk 0:01:45.5]}
19... Kf8 {[%clk 0:00:41.2]} 20. Qe4 {[%clk 0:01:44.9]} 20... Qf7 {[%clk
0:00:26.9]} 21. Bd4 {[%clk 0:01:35.7]} 21... Rxd7 {[%clk 0:00:21.7]} 22. Bxf6
{[%clk 0:01:35.5]} 22... Rxd1 {[%clk 0:00:18.1]} 23. Bxe7+ {[%clk 0:01:35.6]}
23... Qxe7 {[%clk 0:00:11.5]} 24. Qxe7+ {[%clk 0:01:36.1]} 24... Kxe7 {[%clk
0:00:12.1]} 25. Kxd1 {[%clk 0:01:38]} 1-0

[Event "*** Monthly 3|2 Blitz Masters"]
[Site "Chess.com"]
[Date "2014.11.25"]
[Round "4"]
[White "rhungaski"]
[Black "jlandaw"]
[Result "1-0"]
[WhiteElo "2421"]
[BlackElo "2266"]
[TimeControl "180+2"]
[EndTime "11:42:29 PST"]
[Termination "rhungaski won by resignation"]

1. e4 {[%clk 0:02:59.1]} 1... e5 {[%clk 0:02:58.7]} 2. Nf3 {[%clk 0:03:00.2]}
2... Nc6 {[%clk 0:02:59.9]} 3. Bb5 {[%clk 0:03:01.4]} 3... a6 {[%clk 0:03:00.9]}
4. Ba4 {[%clk 0:03:02.2]} 4... Nf6 {[%clk 0:03:02.2]} 5. O-O {[%clk 0:03:03.3]}
5... Be7 {[%clk 0:03:03.5]} 6. Re1 {[%clk 0:03:04.3]} 6... b5 {[%clk 0:03:04.8]}
7. Bb3 {[%clk 0:03:05.7]} 7... d6 {[%clk 0:03:06.4]} 8. c3 {[%clk 0:03:06.7]}
8... O-O {[%clk 0:03:07.6]} 9. h3 {[%clk 0:03:08.1]} 9... Na5 {[%clk 0:03:09]}
10. Bc2 {[%clk 0:03:09.1]} 10... c5 {[%clk 0:03:10.4]} 11. d4 {[%clk 0:03:10.4]}
11... Qc7 {[%clk 0:03:11.8]} 12. Nbd2 {[%clk 0:03:10.1]} 12... cxd4 {[%clk
0:03:13]} 13. cxd4 {[%clk 0:03:10.9]} 13... Rd8 {[%clk 0:03:14.7]} 14. d5 {[%clk
0:03:10.3]} 14... Bd7 {[%clk 0:03:15.7]} 15. Nf1 {[%clk 0:03:04.7]} 15... Rdc8
{[%clk 0:03:16.5]} 16. Bd3 {[%clk 0:03:04.5]} 16... Bd8 {[%clk 0:03:17.5]} 17.
b3 {[%clk 0:03:02.4]} 17... Qa7 {[%clk 0:03:16.9]} 18. Bd2 {[%clk 0:02:58.7]}
18... Bb6 {[%clk 0:03:10.6]} 19. Qe2 {[%clk 0:02:57.7]} 19... Nb7 {[%clk
0:03:05.8]} 20. b4 {[%clk 0:02:57.1]} 20... a5 {[%clk 0:03:07.1]} 21. a3 {[%clk
0:02:52.1]} 21... axb4 {[%clk 0:03:03.2]} 22. axb4 {[%clk 0:02:54]} 22... Qxa1
{[%clk 0:03:02.9]} 23. Rxa1 {[%clk 0:02:55.9]} 23... Rxa1 {[%clk 0:03:03.1]} 24.
Bxb5 {[%clk 0:02:55.3]} 24... Kf8 {[%clk 0:02:28.9]} 25. Bxd7 {[%clk 0:02:51.9]}
25... Nxd7 {[%clk 0:02:30.8]} 26. Qb5 {[%clk 0:02:45.8]} 26... Ke7 {[%clk
0:02:31.4]} 27. g3 {[%clk 0:02:39]} 27... Rc2 {[%clk 0:02:19.7]} 28. Kg2 {[%clk
0:02:36.9]} 28... Raa2 {[%clk 0:02:19.8]} 29. Ne3 {[%clk 0:02:23]} 29... Rxd2
{[%clk 0:02:06.3]} 30. Nxd2 {[%clk 0:02:20.2]} 30... Rxd2 {[%clk 0:02:08.2]} 31.
Nf5+ {[%clk 0:02:11.5]} 31... Kd8 {[%clk 0:02:04.8]} 32. h4 {[%clk 0:02:07.1]}
32... g6 {[%clk 0:01:59.9]} 33. Nh6 {[%clk 0:01:49.2]} 33... Rxf2+ {[%clk
0:01:57.2]} 34. Kh3 {[%clk 0:01:49.9]} 34... Ke7 {[%clk 0:01:52.7]} 35. Ng8+
{[%clk 0:01:45.9]} 35... Ke8 {[%clk 0:01:51.5]} 36. h5 {[%clk 0:01:19.5]} 36...
Rc2 {[%clk 0:01:43.3]} 37. Nf6+ {[%clk 0:01:15.5]} 37... Ke7 {[%clk 0:01:34.6]}
38. Nxd7 {[%clk 0:01:12.4]} 38... Rc7 {[%clk 0:01:31.5]} 39. Nxb6 {[%clk
0:01:11.3]} 1-0

[Event "*** Monthly 3|2 Blitz Masters"]
[Site "Chess.com"]
[Date "2014.11.25"]
[Round "4"]
[White "WanderingPuppet"]
[Black "josiwales"]
[Result "1/2-1/2"]
[WhiteElo "2028"]
[BlackElo "1823"]
[TimeControl "180+2"]
[EndTime "11:43:48 PST"]
[Termination "Game drawn by repetition"]

1. Nc3 {[%clk 0:02:58]} 1... Nf6 {[%clk 0:02:58.6]} 2. d4 {[%clk 0:02:57.4]}
2... d5 {[%clk 0:02:58.6]} 3. Bf4 {[%clk 0:02:57.7]} 3... g6 {[%clk 0:02:56.8]}
4. e3 {[%clk 0:02:52.2]} 4... c6 {[%clk 0:02:57.9]} 5. Nf3 {[%clk 0:02:46.9]}
5... Bg7 {[%clk 0:02:57.1]} 6. Be2 {[%clk 0:02:44.8]} 6... O-O {[%clk
0:02:57.7]} 7. h3 {[%clk 0:02:46]} 7... Nbd7 {[%clk 0:02:55.8]} 8. Ne5 {[%clk
0:02:44]} 8... Nxe5 {[%clk 0:02:51.4]} 9. Bxe5 {[%clk 0:02:45.1]} 9... Nd7
{[%clk 0:02:49.3]} 10. Bxg7 {[%clk 0:02:46]} 10... Kxg7 {[%clk 0:02:50.3]} 11.
O-O {[%clk 0:02:47.5]} 11... Nb6 {[%clk 0:02:48.2]} 12. b3 {[%clk 0:02:45.4]}
12... f6 {[%clk 0:02:45.7]} 13. Bg4 {[%clk 0:02:31.9]} 13... f5 {[%clk
0:02:43.6]} 14. Be2 {[%clk 0:02:30.3]} 14... Qd6 {[%clk 0:02:44.3]} 15. Bf3
{[%clk 0:02:25]} 15... g5 {[%clk 0:02:38.5]} 16. a4 {[%clk 0:02:16.3]} 16... Qg6
{[%clk 0:02:29]} 17. a5 {[%clk 0:02:07.7]} 17... Nd7 {[%clk 0:02:29.9]} 18. Bh5
{[%clk 0:02:08.5]} 18... Qh6 {[%clk 0:02:27.5]} 19. f4 {[%clk 0:01:59.3]} 19...
Nf6 {[%clk 0:02:21.2]} 20. Be2 {[%clk 0:01:57.7]} 20... g4 {[%clk 0:02:19.3]}
21. Qe1 {[%clk 0:01:48.7]} 21... Kh8 {[%clk 0:02:12.7]} 22. h4 {[%clk
0:01:39.6]} 22... Nh5 {[%clk 0:02:11.6]} 23. Na4 {[%clk 0:01:24.6]} 23... Nf6
{[%clk 0:01:55.7]} 24. Nc5 {[%clk 0:01:22.1]} 24... Ne4 {[%clk 0:01:55.7]} 25.
Nxe4 {[%clk 0:01:16.8]} 25... fxe4 {[%clk 0:01:53.5]} 26. g3 {[%clk 0:01:15]}
26... Bf5 {[%clk 0:01:52.7]} 27. Qb4 {[%clk 0:01:11.3]} 27... Qd6 {[%clk
0:01:35.9]} 28. Ra4 {[%clk 0:00:56.3]} 28... h5 {[%clk 0:01:25.2]} 29. Rfa1
{[%clk 0:00:52.1]} 29... Rfb8 {[%clk 0:01:07.6]} 30. Qc3 {[%clk 0:00:48.2]}
30... Kh7 {[%clk 0:01:03.4]} 31. Kf2 {[%clk 0:00:44.1]} 31... Kg6 {[%clk
0:01:03.6]} 32. Rb4 {[%clk 0:00:41.8]} 32... Qd7 {[%clk 0:00:45.1]} 33. Qc5
{[%clk 0:00:40.4]} 33... Qd6 {[%clk 0:00:44.1]} 34. Qc3 {[%clk 0:00:41.1]} 34...
Qd7 {[%clk 0:00:44.2]} 35. Raa4 {[%clk 0:00:42.1]} 35... Qc7 {[%clk 0:00:42.4]}
36. Ra1 {[%clk 0:00:33.9]} 36... Qd7 {[%clk 0:00:42.2]} 1/2-1/2